fUST/lending_fUST_20260519
["ID","MTS","AMOUNT","RATE_DAILY","PERIOD"]
[422589649,1779129048000,-1949.61,0.0001041,2]
[422589654,1779129048000,-573.35,0.0001041,2]
[422589655,1779129048000,-9815.74,0.0001041,2]
[422589653,1779129048000,-511.83,0.0001041,2]
[422589650,1779129048000,-1377.24,0.0001041,2]
[422589648,1779129048000,-517.65,0.0001041,2]
[422589647,1779129048000,-565.1,0.0001041,2]
[422589646,1779129048000,-1139.65,0.0001041,2]
[422589652,1779129048000,-500.0,0.0001041,2]
[422589683,1779129092000,-1229.59583805,8.136e-05,2]
[422589702,1779129699000,-1870.98497835,0.00018895,30]
[422589704,1779129699000,-1261.91159818,0.00018895,30]
[422589703,1779129699000,-1590.6598241,0.00018895,30]
[422589705,1779129699000,-1105.38483021,0.00018895,60]
[422589706,1779129699000,-1963.43183725,0.00018895,30]
[422589709,1779129699000,-1608.47098541,0.00018895,30]
[422589708,1779129699000,-1259.65713947,0.00018895,30]
[422589707,1779129699000,-186.38969394,0.00018895,31]
[422589713,1779129699000,-641.0,0.00018895,30]
[422589716,1779129699000,-1044802.81850925,0.00018895,30]
[422589717,1779129699000,-4904959.4438051,0.00018895,30]
[422589715,1779129699000,-32486.82644401,0.00018895,30]
[422589710,1779129699000,-1057.48424589,0.00018895,60]
[422589712,1779129699000,-160.93421964,0.00018895,30]
[422589711,1779129699000,-1040.6018892,0.00018895,30]
[422589714,1779129699000,-4004.0,0.00018895,60]
[422589718,1779129707000,-6000000.0,0.00018895,30]
[422589719,1779129729000,151.0,9.461e-05,120]
[422589720,1779129730000,151.0,9.461e-05,120]
[422589721,1779129740000,-6000000.0,0.00018895,30]
[422589722,1779129747000,-6000000.0,0.00018895,30]
[422589741,1779129766000,-338.81234379,0.00018895,120]
[422589739,1779129766000,-320.77299528,0.00018895,120]
[422589738,1779129766000,-560.38647084,0.00018895,120]
[422589736,1779129766000,-1545.45590373,0.00018895,120]
[422589737,1779129766000,-1626.95983484,0.00018895,120]
[422589734,1779129766000,-2824.03622076,0.00018895,120]
[422589735,1779129766000,-1081.62243561,0.00018895,120]
[422589732,1779129766000,-1186.85907967,0.00018895,120]
[422589727,1779129766000,-741.96250755,0.00018895,120]
[422589731,1779129766000,-3322.97905217,0.00018895,120]
[422589730,1779129766000,-2300.0,0.00018895,120]
[422589729,1779129766000,-758.71949617,0.00018895,120]
[422589728,1779129766000,-2993.58915985,0.00018895,120]
[422589740,1779129766000,-230.92188333,0.00018895,120]
[422589725,1779129766000,-294.36664918,0.00018895,120]
[422589724,1779129766000,-2296.31732153,0.00018895,120]
[422589723,1779129766000,-1323.93738776,0.00018895,120]
[422589733,1779129766000,-1464.59923275,0.00018895,120]
[422589726,1779129766000,-982.88006384,0.00018895,120]
[422589742,1779129766000,-585.60428822,0.00018895,120]
[422589744,1779129766000,-403.003331,0.00018895,120]
[422589762,1779129766000,-660.78578406,0.00018895,120]
[422589760,1779129766000,-1129.27003682,0.00018895,120]
[422589761,1779129766000,-2000.0,0.00018895,120]
[422589743,1779129766000,-2230.72801848,0.00018895,120]
[422589759,1779129766000,-163.17933726,0.00018895,120]
[422589756,1779129766000,-167.29408065,0.00018895,120]
[422589757,1779129766000,-1237.88985735,0.00018895,120]
[422589755,1779129766000,-204.55879407,0.00018895,120]
[422589753,1779129766000,-581.66828919,0.00018895,120]
[422589758,1779129766000,-200.0,0.00018895,120]
[422589751,1779129766000,-522.04927378,0.00018895,120]
[422589752,1779129766000,-480.44251297,0.00018895,120]
[422589749,1779129766000,-1886.96815574,0.00018895,120]
[422589750,1779129766000,-182.46090582,0.00018895,120]
[422589747,1779129766000,-368.28558203,0.00018895,120]
[422589748,1779129766000,-378.59254181,0.00018895,120]
[422589745,1779129766000,-2139.01266906,0.00018895,120]
[422589746,1779129766000,-967.80526815,0.00018895,120]
[422589754,1779129766000,-2094.49044589,0.00018895,120]
[422589772,1779129767000,-611.24222147,0.00018895,120]
[422589769,1779129767000,-170.0,0.00018895,120]
[422589770,1779129767000,-170.0,0.00018895,120]
[422589768,1779129767000,-628509.6443919,0.00018895,120]
[422589763,1779129767000,-405.21999483,0.00018895,120]
[422589766,1779129767000,-337.32839715,0.00018895,120]
[422589765,1779129767000,-494.64,0.00018895,120]
[422589764,1779129767000,-1470.16552549,0.00018895,120]
[422589774,1779129767000,-611.24222147,0.00018895,120]
[422589767,1779129767000,-4002.05083295,0.00018895,120]
[422589773,1779129767000,-611.24222147,0.00018895,120]
[422589771,1779129767000,-611.24222147,0.00018895,120]
[422589776,1779129767000,-611.24222147,0.00018895,120]
[422589778,1779129767000,-611.24222147,0.00018895,120]
[422589786,1779129767000,-2473.30818747,0.00018895,120]
[422589777,1779129767000,-611.24222147,0.00018895,120]
[422589779,1779129767000,-611.24222147,0.00018895,120]
[422589781,1779129767000,-611.24222147,0.00018895,120]
[422589780,1779129767000,-611.24222147,0.00018895,120]
[422589783,1779129767000,-611.24222147,0.00018895,120]
[422589782,1779129767000,-611.24222147,0.00018895,120]
[422589785,1779129767000,-611.24222147,0.00018895,120]
[422589784,1779129767000,-611.24222147,0.00018895,120]
[422589787,1779129767000,-165.87579244,0.00018895,120]
[422589775,1779129767000,-611.24222147,0.00018895,120]
[422589838,1779130231000,-1242.94698059,6.402e-05,2]
[422589840,1779130231000,-4022.68465221,6.467e-05,2]
[422589844,1779130231000,-335.03464026,6.565e-05,2]
[422589848,1779130231000,-163.20936501,8.086e-05,2]
[422589842,1779130231000,-1229.59583805,6.532e-05,2]
[422589846,1779130231000,-210.31085155,7.222e-05,2]
[422589850,1779130231000,-1200.0,8.117e-05,2]
[422589855,1779130232000,-638.65210713,8.118e-05,2]
[422589853,1779130232000,-3372.81863604,8.118e-05,2]
[422589852,1779130232000,-300.0,8.117e-05,2]
[422590012,1779130238000,-500.0,8.118e-05,2]
[422590008,1779130238000,-500.0,8.118e-05,2]
[422590007,1779130238000,-1688.00711261,8.118e-05,2]
[422590009,1779130238000,-390.35122285,8.118e-05,2]
[422590010,1779130238000,-500.0,8.118e-05,2]
[422590015,1779130238000,-500.0,8.118e-05,2]
[422590011,1779130238000,-500.0,8.118e-05,2]
[422590013,1779130238000,-500.0,8.118e-05,2]
[422590020,1779130238000,-62834.85286892,8.119e-05,2]
[422590017,1779130238000,-500.0,8.118e-05,2]
[422590014,1779130238000,-500.0,8.118e-05,2]
[422590016,1779130238000,-500.0,8.118e-05,2]
[422590019,1779130238000,-11440.69459649,8.119e-05,2]
[422590018,1779130238000,-422.87748113,8.118e-05,2]
[422590034,1779130240000,-500.0,8.219e-05,2]
[422590033,1779130240000,-500.0,8.219e-05,2]
[422590032,1779130240000,-500.0,8.219e-05,2]
[422590031,1779130240000,-500.0,8.219e-05,2]
[422590028,1779130240000,-500.0,8.219e-05,2]
[422590030,1779130240000,-795.5603,8.219e-05,2]
[422590029,1779130240000,-500.0,8.219e-05,2]
[422590027,1779130240000,-9776.01826733,8.119e-05,2]
[422590035,1779130240000,-41.18431279,8.219e-05,2]
[422590042,1779130243000,-506.86408094,8.219e-05,2]
[422590045,1779130243000,-125.6953518,8.219e-05,2]
[422590044,1779130243000,-449.71541145,8.219e-05,2]
[422590043,1779130243000,-50.31999143,8.219e-05,2]
[422590063,1779130246000,-500.0,8.219e-05,2]
[422590052,1779130246000,-112.0246482,8.219e-05,2]
[422590055,1779130246000,-527.37,8.219e-05,2]
[422590053,1779130246000,-500.08891784,8.219e-05,2]
[422590051,1779130246000,-304.0,8.219e-05,2]
[422590054,1779130246000,-500.0,8.219e-05,2]
[422590060,1779130246000,-124.48356604,8.219e-05,2]
[422590056,1779130246000,-500.0,8.219e-05,2]
[422590057,1779130246000,-500.0,8.219e-05,2]
[422590058,1779130246000,-500.0,8.219e-05,2]
[422590059,1779130246000,-375.51643396,8.219e-05,2]
[422590061,1779130246000,-500.0,8.219e-05,2]
[422590073,1779130246000,-500.0,8.219e-05,2]
[422590075,1779130246000,-163.23643396,8.219e-05,2]
[422590062,1779130246000,-500.0,8.219e-05,2]
[422590067,1779130246000,-500.0,8.219e-05,2]
[422590080,1779130246000,-500.0,8.219e-05,2]
[422590076,1779130246000,-1055.26356604,8.219e-05,2]
[422590078,1779130246000,-860.77,8.219e-05,2]
[422590079,1779130246000,-500.0,8.219e-05,2]
[422590077,1779130246000,-500.0,8.219e-05,2]
[422590071,1779130246000,-712.28,8.219e-05,2]
[422590074,1779130246000,-500.0,8.219e-05,2]
[422590070,1779130246000,-500.0,8.219e-05,2]
[422590064,1779130246000,-500.0,8.219e-05,2]
[422590072,1779130246000,-500.0,8.219e-05,2]
[422590068,1779130246000,-500.0,8.219e-05,2]
[422590069,1779130246000,-500.0,8.219e-05,2]
[422590066,1779130246000,-500.0,8.219e-05,2]
[422590081,1779130247000,-353.88261368,8.219e-05,2]
[422590083,1779130247000,-741.92334192,8.219e-05,2]
[422590082,1779130247000,-558.64,8.219e-05,2]
[422590084,1779130247000,-3811.99021611,8.219e-05,2]
[422590146,1779131433000,-1466.30417787,6.936e-05,2]
[422590154,1779131433000,-338.712,6.936e-05,2]
[422590290,1779131438000,-337.4729457,7.9e-05,2]
[422590292,1779131438000,-315.23464764,7.9e-05,2]
[422590286,1779131438000,-214.1547175,7.9e-05,2]
[422590288,1779131438000,-355.3846615,7.9e-05,2]
[422590282,1779131438000,-18181.85,7.5e-05,2]
[422590296,1779131438000,-500.0,8.118e-05,2]
[422590284,1779131438000,-1680.0,7.765e-05,2]
[422590319,1779131438000,-500.0,8.118e-05,2]
[422590278,1779131438000,-300.0,7.13e-05,2]
[422590280,1779131438000,-300.0,7.13e-05,2]
[422590275,1779131438000,-300.0,7.13e-05,2]
[422590271,1779131438000,-300.0,7.059e-05,2]
[422590269,1779131438000,-200.0,7.006e-05,2]
[422590267,1779131438000,-344.91350205,6.971e-05,2]
[422590265,1779131438000,-3194.98382213,6.936e-05,2]
[422590298,1779131438000,-500.0,8.118e-05,2]
[422590273,1779131438000,-1200.0,7.059e-05,2]
[422590294,1779131438000,-500.0,8.118e-05,2]
[422590314,1779131438000,-500.0,8.118e-05,2]
[422590302,1779131438000,-500.0,8.118e-05,2]
[422590334,1779131438000,-208154.49252899,8.119e-05,2]
[422590330,1779131438000,-449.32372951,8.118e-05,2]
[422590332,1779131438000,-600.0,8.118e-05,2]
[422590328,1779131438000,-500.0,8.118e-05,2]
[422590327,1779131438000,-500.0,8.118e-05,2]
[422590325,1779131438000,-325.71547518,8.118e-05,2]
[422590323,1779131438000,-500.0,8.118e-05,2]
[422590321,1779131438000,-500.0,8.118e-05,2]
[422590317,1779131438000,-376.84429421,8.118e-05,2]
[422590315,1779131438000,-500.0,8.118e-05,2]
[422590300,1779131438000,-500.0,8.118e-05,2]
[422590311,1779131438000,-404.80381916,8.118e-05,2]
[422590308,1779131438000,-500.0,8.118e-05,2]
[422590309,1779131438000,-500.0,8.118e-05,2]
[422590306,1779131438000,-500.0,8.118e-05,2]
[422590304,1779131438000,-500.0,8.118e-05,2]
[422590341,1779131439000,-362.27840461,8.219e-05,2]
[422590342,1779131439000,-500.0,8.219e-05,2]
[422590337,1779131439000,-752926.18004012,8.119e-05,2]
[422590339,1779131439000,-795.5603,8.219e-05,2]
[422590345,1779131439000,-500.0,8.219e-05,2]
[422590349,1779131439000,-500.0,8.219e-05,2]
[422590351,1779131439000,-500.0,8.219e-05,2]
[422590358,1779131439000,-131.89820131,8.219e-05,2]
[422590352,1779131439000,-500.0,8.219e-05,2]
[422590354,1779131439000,-500.0,8.219e-05,2]
[422590356,1779131439000,-500.0,8.219e-05,2]
[422590346,1779131439000,-500.0,8.219e-05,2]
[422590522,1779131443000,-500.0,8.219e-05,2]
[422590526,1779131443000,-769.25,8.219e-05,2]
[422590520,1779131443000,-6103.93,8.219e-05,2]
[422590532,1779131443000,-500.0,8.219e-05,2]
[422590525,1779131443000,-500.0,8.219e-05,2]
[422590524,1779131443000,-1477.44,8.219e-05,2]
[422590529,1779131443000,-500.0,8.219e-05,2]
[422590521,1779131443000,-500.0,8.219e-05,2]
[422590531,1779131443000,-1003.29,8.219e-05,2]
[422590528,1779131443000,-500.0,8.219e-05,2]
[422590523,1779131443000,-500.0,8.219e-05,2]
[422590527,1779131443000,-500.0,8.219e-05,2]
[422590514,1779131443000,-500.0,8.219e-05,2]
[422590513,1779131443000,-500.0,8.219e-05,2]
[422590530,1779131443000,-500.0,8.219e-05,2]
[422590511,1779131443000,-500.0,8.219e-05,2]
[422590512,1779131443000,-500.0,8.219e-05,2]
[422590508,1779131443000,-500.0,8.219e-05,2]
[422590509,1779131443000,-365.19933671,8.219e-05,2]
[422590515,1779131443000,-500.0,8.219e-05,2]
[422590510,1779131443000,-500.0,8.219e-05,2]
[422590518,1779131443000,-824.91,8.219e-05,2]
[422590517,1779131443000,-500.0,8.219e-05,2]
[422590507,1779131443000,-368.10179869,8.219e-05,2]
[422590516,1779131443000,-1167.73,8.219e-05,2]
[422590534,1779131443000,-500.0,8.219e-05,2]
[422590519,1779131443000,-535.36,8.219e-05,2]
[422590535,1779131443000,-500.0,8.219e-05,2]
[422590545,1779131443000,-995.68,8.219e-05,2]
[422590561,1779131443000,-500.0,8.493e-05,2]
[422590560,1779131443000,-500.0,8.493e-05,2]
[422590553,1779131443000,-590.0,8.219e-05,2]
[422590550,1779131443000,-578.02,8.219e-05,2]
[422590555,1779131443000,-500.0,8.219e-05,2]
[422590556,1779131443000,-501.04827471,8.219e-05,2]
[422590551,1779131443000,-1020.82,8.219e-05,2]
[422590557,1779131443000,-500.0,8.219e-05,2]
[422590552,1779131443000,-500.0,8.219e-05,2]
[422590558,1779131443000,-500.0,8.219e-05,2]
[422590549,1779131443000,-500.0,8.219e-05,2]
[422590559,1779131443000,-795.5603,8.493e-05,2]
[422590554,1779131443000,-500.0,8.219e-05,2]
[422590548,1779131443000,-500.0,8.219e-05,2]
[422590533,1779131443000,-500.0,8.219e-05,2]
[422590547,1779131443000,-500.0,8.219e-05,2]
[422590546,1779131443000,-500.0,8.219e-05,2]
[422590539,1779131443000,-569.13,8.219e-05,2]
[422590536,1779131443000,-500.0,8.219e-05,2]
[422590544,1779131443000,-500.0,8.219e-05,2]
[422590538,1779131443000,-500.0,8.219e-05,2]
[422590540,1779131443000,-500.0,8.219e-05,2]
[422590543,1779131443000,-500.0,8.219e-05,2]
[422590541,1779131443000,-500.0,8.219e-05,2]
[422590542,1779131443000,-500.0,8.219e-05,2]
[422590537,1779131443000,-500.0,8.219e-05,2]
[422590603,1779131444000,-500.0,8.493e-05,2]
[422590604,1779131444000,-578.02,8.493e-05,2]
[422590601,1779131444000,-995.68,8.493e-05,2]
[422590599,1779131444000,-500.0,8.493e-05,2]
[422590598,1779131444000,-500.0,8.493e-05,2]
[422590606,1779131444000,-500.0,8.493e-05,2]
[422590605,1779131444000,-1020.82,8.493e-05,2]
[422590597,1779131444000,-569.13,8.493e-05,2]
[422590596,1779131444000,-500.0,8.493e-05,2]
[422590591,1779131444000,-1003.29,8.493e-05,2]
[422590607,1779131444000,-500.0,8.493e-05,2]
[422590595,1779131444000,-500.0,8.493e-05,2]
[422590600,1779131444000,-500.0,8.493e-05,2]
[422590621,1779131444000,-500.0,8.767e-05,2]
[422590608,1779131444000,-500.0,8.493e-05,2]
[422590611,1779131444000,-1963.005729,8.6e-05,2]
[422590610,1779131444000,-500.0,8.493e-05,2]
[422590616,1779131444000,-500.0,8.767e-05,2]
[422590609,1779131444000,-500.0,8.493e-05,2]
[422590615,1779131444000,-500.0,8.767e-05,2]
[422590614,1779131444000,-500.0,8.767e-05,2]
[422590613,1779131444000,-166.17389704,8.767e-05,2]
[422590612,1779131444000,-795.5603,8.767e-05,2]
[422590617,1779131444000,-500.0,8.767e-05,2]
[422590619,1779131444000,-500.0,8.767e-05,2]
[422590618,1779131444000,-500.0,8.767e-05,2]
[422590592,1779131444000,-500.0,8.493e-05,2]
[422590602,1779131444000,-500.0,8.493e-05,2]
[422590590,1779131444000,-500.0,8.493e-05,2]
[422590571,1779131444000,-500.0,8.493e-05,2]
[422590594,1779131444000,-500.0,8.493e-05,2]
[422590631,1779131444000,-500.0,8.767e-05,2]
[422590562,1779131444000,-500.0,8.493e-05,2]
[422590570,1779131444000,-555.23768746,8.493e-05,2]
[422590566,1779131444000,-500.0,8.493e-05,2]
[422590568,1779131444000,-500.0,8.493e-05,2]
[422590563,1779131444000,-500.0,8.493e-05,2]
[422590572,1779131444000,-500.0,8.493e-05,2]
[422590564,1779131444000,-500.0,8.493e-05,2]
[422590573,1779131444000,-287.66540879,8.493e-05,2]
[422590567,1779131444000,-638.90010065,8.493e-05,2]
[422590565,1779131444000,-500.0,8.493e-05,2]
[422590569,1779131444000,-500.0,8.493e-05,2]
[422590574,1779131444000,-500.0,8.493e-05,2]
[422590587,1779131444000,-500.0,8.493e-05,2]
[422590577,1779131444000,-500.0,8.493e-05,2]
[422590576,1779131444000,-1167.73,8.493e-05,2]
[422590581,1779131444000,-500.0,8.493e-05,2]
[422590578,1779131444000,-824.91,8.493e-05,2]
[422590575,1779131444000,-500.0,8.493e-05,2]
[422590580,1779131444000,-6103.93,8.493e-05,2]
[422590583,1779131444000,-500.0,8.493e-05,2]
[422590579,1779131444000,-535.36,8.493e-05,2]
[422590584,1779131444000,-1477.44,8.493e-05,2]
[422590585,1779131444000,-500.0,8.493e-05,2]
[422590586,1779131444000,-769.25,8.493e-05,2]
[422590588,1779131444000,-500.0,8.493e-05,2]
[422590589,1779131444000,-500.0,8.493e-05,2]
[422590593,1779131444000,-500.0,8.493e-05,2]
[422590582,1779131444000,-500.0,8.493e-05,2]
[422590623,1779131444000,-500.0,8.767e-05,2]
[422590682,1779131444000,-1477.44,9.041e-05,2]
[422590632,1779131444000,-500.0,8.767e-05,2]
[422590658,1779131444000,-500.0,8.767e-05,2]
[422590649,1779131444000,-500.0,8.767e-05,2]
[422590659,1779131444000,-500.0,8.767e-05,2]
[422590661,1779131444000,-795.5603,9.041e-05,2]
[422590667,1779131444000,-500.0,9.041e-05,2]
[422590665,1779131444000,-598.38465888,9.041e-05,2]
[422590664,1779131444000,-500.0,9.041e-05,2]
[422590660,1779131444000,-406.99793242,8.971e-05,2]
[422590662,1779131444000,-500.0,9.041e-05,2]
[422590663,1779131444000,-500.0,9.041e-05,2]
[422590669,1779131444000,-500.0,9.041e-05,2]
[422590666,1779131444000,-500.0,9.041e-05,2]
[422590668,1779131444000,-500.0,9.041e-05,2]
[422590670,1779131444000,-500.0,9.041e-05,2]
[422590673,1779131444000,-500.0,9.041e-05,2]
[422590683,1779131444000,-500.0,9.041e-05,2]
[422590684,1779131444000,-769.25,9.041e-05,2]
[422590678,1779131444000,-6103.93,9.041e-05,2]
[422590674,1779131444000,-1167.73,9.041e-05,2]
[422590675,1779131444000,-500.0,9.041e-05,2]
[422590676,1779131444000,-824.91,9.041e-05,2]
[422590680,1779131444000,-244.51429179,9.041e-05,2]
[422590679,1779131444000,-500.0,9.041e-05,2]
[422590672,1779131444000,-500.0,9.041e-05,2]
[422590677,1779131444000,-535.36,9.041e-05,2]
[422590681,1779131444000,-500.0,9.041e-05,2]
[422590622,1779131444000,-500.0,8.767e-05,2]
[422590650,1779131444000,-500.0,8.767e-05,2]
[422590653,1779131444000,-500.0,8.767e-05,2]
[422590671,1779131444000,-500.0,9.041e-05,2]
[422590648,1779131444000,-500.0,8.767e-05,2]
[422590620,1779131444000,-500.0,8.767e-05,2]
[422590654,1779131444000,-578.02,8.767e-05,2]
[422590626,1779131444000,-1167.73,8.767e-05,2]
[422590625,1779131444000,-500.0,8.767e-05,2]
[422590624,1779131444000,-500.0,8.767e-05,2]
[422590627,1779131444000,-500.0,8.767e-05,2]
[422590630,1779131444000,-6103.93,8.767e-05,2]
[422590629,1779131444000,-535.36,8.767e-05,2]
[422590633,1779131444000,-500.0,8.767e-05,2]
[422590635,1779131444000,-500.0,8.767e-05,2]
[422590645,1779131444000,-500.0,8.767e-05,2]
[422590641,1779131444000,-1003.29,8.767e-05,2]
[422590634,1779131444000,-1477.44,8.767e-05,2]
[422590636,1779131444000,-769.25,8.767e-05,2]
[422590628,1779131444000,-824.91,8.767e-05,2]
[422590638,1779131444000,-500.0,8.767e-05,2]
[422590655,1779131444000,-1020.82,8.767e-05,2]
[422590651,1779131444000,-995.68,8.767e-05,2]
[422590652,1779131444000,-500.0,8.767e-05,2]
[422590646,1779131444000,-500.0,8.767e-05,2]
[422590657,1779131444000,-500.0,8.767e-05,2]
[422590647,1779131444000,-569.13,8.767e-05,2]
[422590656,1779131444000,-500.0,8.767e-05,2]
[422590642,1779131444000,-500.0,8.767e-05,2]
[422590640,1779131444000,-500.0,8.767e-05,2]
[422590639,1779131444000,-500.0,8.767e-05,2]
[422590637,1779131444000,-394.65302908,8.767e-05,2]
[422590644,1779131444000,-500.0,8.767e-05,2]
[422590643,1779131444000,-500.0,8.767e-05,2]
[422590739,1779131445000,-500.0,9.315e-05,2]
[422590729,1779131445000,-500.0,9.315e-05,2]
[422590728,1779131445000,-1477.44,9.315e-05,2]
[422590730,1779131445000,-769.25,9.315e-05,2]
[422590731,1779131445000,-500.0,9.315e-05,2]
[422590727,1779131445000,-500.0,9.315e-05,2]
[422590732,1779131445000,-500.0,9.315e-05,2]
[422590720,1779131445000,-500.0,9.315e-05,2]
[422590721,1779131445000,-1167.73,9.315e-05,2]
[422590725,1779131445000,-6103.93,9.315e-05,2]
[422590719,1779131445000,-500.0,9.315e-05,2]
[422590724,1779131445000,-535.36,9.315e-05,2]
[422590713,1779131445000,-355.68186359,9.315e-05,2]
[422590726,1779131445000,-500.0,9.315e-05,2]
[422590735,1779131445000,-500.0,9.315e-05,2]
[422590753,1779131445000,-166.612,9.557e-05,2]
[422590734,1779131445000,-1003.29,9.315e-05,2]
[422590736,1779131445000,-500.0,9.315e-05,2]
[422590738,1779131445000,-500.0,9.315e-05,2]
[422590737,1779131445000,-500.0,9.315e-05,2]
[422590742,1779131445000,-500.0,9.315e-05,2]
[422590743,1779131445000,-500.0,9.315e-05,2]
[422590740,1779131445000,-569.13,9.315e-05,2]
[422590741,1779131445000,-500.0,9.315e-05,2]
[422590744,1779131445000,-995.68,9.315e-05,2]
[422590748,1779131445000,-1020.82,9.315e-05,2]
[422590746,1779131445000,-500.0,9.315e-05,2]
[422590745,1779131445000,-500.0,9.315e-05,2]
[422590751,1779131445000,-500.0,9.315e-05,2]
[422590722,1779131445000,-500.0,9.315e-05,2]
[422590733,1779131445000,-500.0,9.315e-05,2]
[422590718,1779131445000,-500.0,9.315e-05,2]
[422590694,1779131445000,-569.13,9.041e-05,2]
[422590714,1779131445000,-500.0,9.315e-05,2]
[422590685,1779131445000,-500.0,9.041e-05,2]
[422590686,1779131445000,-500.0,9.041e-05,2]
[422590688,1779131445000,-1003.29,9.041e-05,2]
[422590693,1779131445000,-500.0,9.041e-05,2]
[422590696,1779131445000,-500.0,9.041e-05,2]
[422590687,1779131445000,-500.0,9.041e-05,2]
[422590690,1779131445000,-500.0,9.041e-05,2]
[422590695,1779131445000,-500.0,9.041e-05,2]
[422590697,1779131445000,-500.0,9.041e-05,2]
[422590689,1779131445000,-500.0,9.041e-05,2]
[422590692,1779131445000,-500.0,9.041e-05,2]
[422590691,1779131445000,-500.0,9.041e-05,2]
[422590699,1779131445000,-500.0,9.041e-05,2]
[422590710,1779131445000,-161.35026069,9.315e-05,2]
[422590711,1779131445000,-500.0,9.315e-05,2]
[422590709,1779131445000,-795.5603,9.315e-05,2]
[422590698,1779131445000,-995.68,9.041e-05,2]
[422590715,1779131445000,-500.0,9.315e-05,2]
[422590716,1779131445000,-500.0,9.315e-05,2]
[422590717,1779131445000,-500.0,9.315e-05,2]
[422590712,1779131445000,-500.0,9.315e-05,2]
[422590705,1779131445000,-500.0,9.041e-05,2]
[422590704,1779131445000,-500.0,9.041e-05,2]
[422590723,1779131445000,-824.91,9.315e-05,2]
[422590708,1779131445000,-185.0,9.276e-05,2]
[422590703,1779131445000,-500.0,9.041e-05,2]
[422590706,1779131445000,-161.68513202,9.166e-05,2]
[422590701,1779131445000,-578.02,9.041e-05,2]
[422590749,1779131445000,-500.0,9.315e-05,2]
[422590702,1779131445000,-1020.82,9.041e-05,2]
[422590700,1779131445000,-500.0,9.041e-05,2]
[422590707,1779131445000,-443.0,9.276e-05,2]
[422590752,1779131445000,-166.79802967,9.359e-05,2]
[422590799,1779131445000,-500.0,9.863e-05,2]
[422590750,1779131445000,-500.0,9.315e-05,2]
[422590791,1779131445000,-578.02,9.589e-05,2]
[422590788,1779131445000,-995.68,9.589e-05,2]
[422590787,1779131445000,-500.0,9.589e-05,2]
[422590792,1779131445000,-1020.82,9.589e-05,2]
[422590796,1779131445000,-152.0,9.832e-05,7]
[422590790,1779131445000,-521.26929749,9.589e-05,2]
[422590786,1779131445000,-500.0,9.589e-05,2]
[422590798,1779131445000,-500.0,9.863e-05,2]
[422590809,1779131445000,-535.36,9.863e-05,2]
[422590808,1779131445000,-824.91,9.863e-05,2]
[422590797,1779131445000,-554.1023,9.863e-05,2]
[422590806,1779131445000,-1167.73,9.863e-05,2]
[422590807,1779131445000,-500.0,9.863e-05,2]
[422590804,1779131445000,-500.0,9.863e-05,2]
[422590789,1779131445000,-500.0,9.589e-05,2]
[422590800,1779131445000,-500.0,9.863e-05,2]
[422590805,1779131445000,-500.0,9.863e-05,2]
[422590801,1779131445000,-593.77465437,9.863e-05,2]
[422590803,1779131445000,-435.50895491,9.863e-05,2]
[422590823,1779131445000,-1003.29,9.863e-05,2]
[422590811,1779131445000,-500.0,9.863e-05,2]
[422590821,1779131445000,-500.0,9.863e-05,2]
[422590810,1779131445000,-6103.93,9.863e-05,2]
[422590813,1779131445000,-1477.44,9.863e-05,2]
[422590812,1779131445000,-500.0,9.863e-05,2]
[422590814,1779131445000,-500.0,9.863e-05,2]
[422590815,1779131445000,-769.25,9.863e-05,2]
[422590817,1779131445000,-500.0,9.863e-05,2]
[422590819,1779131445000,-500.0,9.863e-05,2]
[422590747,1779131445000,-578.02,9.315e-05,2]
[422590802,1779131445000,-500.0,9.863e-05,2]
[422590793,1779131445000,-500.0,9.589e-05,2]
[422590825,1779131445000,-500.0,9.863e-05,2]
[422590783,1779131445000,-500.0,9.589e-05,2]
[422590785,1779131445000,-500.0,9.589e-05,2]
[422590755,1779131445000,-585.81041736,9.589e-05,2]
[422590765,1779131445000,-500.0,9.589e-05,2]